bitfinex/quotes_BTCUSD_20240731
["timestamp","ask_amount","ask_price","bid_price","bid_amount"]
[1722457874877,0.001,64897.0,64896.0,0.99148292]
[1722457875088,0.002,64897.0,64896.0,0.86848292]
[1722457875314,0.1494,64897.0,64890.0,0.0015542]
[1722457875512,0.1494,64897.0,64889.0,0.10083]
[1722457875513,0.07476412,64891.0,64889.0,0.00083]
[1722457875727,0.00213159,64890.0,64889.0,0.00083]
[1722457876345,0.01082116,64890.0,64889.0,0.00083]
[1722457876552,0.01,64886.0,64870.0,0.00867]
[1722457876782,0.01,64886.0,64867.0,0.00867]
[1722457876783,0.07476412,64884.0,64867.0,0.00867]
[1722457877029,0.37847555,64884.0,64867.0,0.00867]
[1722457877231,0.44407555,64884.0,64867.0,0.01734]
[1722457877461,0.44407555,64884.0,64867.0,0.00867]
[1722457878086,0.46824754,64884.0,64867.0,0.00867]
[1722457878301,0.46824754,64884.0,64883.0,0.00967]
[1722457878302,0.76774827,64884.0,64883.0,0.00967]
[1722457878515,0.91379664,64884.0,64883.0,0.00967]
[1722457878721,1.29279389,64884.0,64883.0,0.00967]
[1722457878977,1.30679389,64884.0,64883.0,0.00967]
[1722457879191,1.30679389,64884.0,64883.0,0.00867]
[1722457879403,1.30679389,64884.0,64867.0,0.00867]
[1722457879404,0.03,64880.0,64867.0,0.00867]
[1722457879618,0.65820693,64880.0,64867.0,0.00867]
[1722457879827,0.65820693,64880.0,64859.0,0.00867]
[1722457879828,0.01,64878.0,64866.0,0.00217]
[1722457880042,0.21783985,64880.0,64866.0,0.00217]
[1722457880043,0.07476412,64869.0,64866.0,0.00217]
[1722457880253,0.00213159,64868.0,64866.0,0.00217]
[1722457881327,0.07476412,64876.0,64866.0,0.00317]
[1722457881328,0.005,64869.0,64866.0,0.00317]
[1722457881595,0.07476412,64867.0,64866.0,0.00217]
[1722457883520,0.08876412,64867.0,64866.0,0.00217]
[1722457884137,0.07876412,64867.0,64866.0,0.00217]
[1722457884370,0.23206412,64867.0,64866.0,0.00217]
[1722457884591,0.23206412,64867.0,64859.0,0.00867]
[1722457884592,0.154178,64860.0,64859.0,0.00867]
[1722457884797,1.16813461,64860.0,64859.0,0.00867]
[1722457885004,1.26813461,64860.0,64859.0,0.00867]
[1722457885242,1.44179861,64860.0,64859.0,0.00867]
[1722457885459,1.7174013,64860.0,64859.0,1e-08]
[1722457885666,1.76959885,64860.0,64859.0,1e-08]
[1722457885877,1.76959885,64860.0,64851.0,0.00134]
[1722457885878,0.346497,64852.0,64851.0,0.00134]
[1722457886082,1.44775402,64852.0,64851.0,0.00134]
[1722457886299,1.65496073,64852.0,64851.0,0.00134]
[1722457886513,0.01,64848.0,64837.0,0.00867]
[1722457886726,0.03,64846.0,64837.0,0.00867]
[1722457886929,0.39751702,64846.0,64837.0,0.00867]
[1722457887139,0.44185172,64846.0,64837.0,0.00867]
[1722457887348,0.65140715,64846.0,64837.0,0.00867]
[1722457887569,0.49719615,64846.0,64837.0,0.00867]
[1722457887776,0.49719615,64846.0,64845.0,0.00968]
[1722457887777,0.15534443,64846.0,64845.0,0.00968]
[1722457887989,0.01,64848.0,64845.0,0.00968]
[1722457888207,0.01,64848.0,64845.0,0.00868]
[1722457888413,0.014,64846.0,64845.0,0.00968]
[1722457888616,0.00213159,64847.0,64845.0,0.00868]
[1722457888847,0.16396412,64852.0,64845.0,0.00868]
[1722457889047,0.16396412,64852.0,64845.0,0.00968]
[1722457889048,0.014,64846.0,64845.0,0.00968]
[1722457889733,0.03818654,64846.0,64845.0,0.00968]
[1722457890158,0.05218654,64846.0,64845.0,0.00968]
[1722457890377,0.03818654,64846.0,64845.0,0.00868]
[1722457890786,0.02418654,64846.0,64845.0,0.00868]
[1722457890990,0.03818654,64846.0,64845.0,0.00868]
[1722457891408,0.04618654,64846.0,64845.0,0.00968]
[1722457891608,0.03818654,64846.0,64845.0,0.00868]
[1722457891825,0.03818654,64846.0,64845.0,0.00968]
[1722457892026,0.04418654,64846.0,64845.0,0.00968]
[1722457892233,0.03018654,64846.0,64845.0,0.00868]
[1722457892440,0.21186985,64846.0,64845.0,0.00868]
[1722457892645,0.22586985,64846.0,64845.0,0.00868]
[1722457892854,1.37684031,64846.0,64845.0,0.00868]
[1722457893058,1.4324974,64846.0,64845.0,0.00868]
[1722457893268,1.79638089,64846.0,64845.0,0.00868]
[1722457893466,1.20253489,64846.0,64845.0,0.00868]
[1722457893672,1.1520744,64846.0,64845.0,0.00868]
[1722457893877,0.346513,64845.0,64844.0,0.00135]
[1722457894090,0.67082884,64845.0,64844.0,0.00135]
[1722457894512,0.35431584,64845.0,64844.0,0.00135]
[1722457895320,0.33431584,64845.0,64844.0,0.00135]
[1722457895545,0.35431584,64845.0,64844.0,0.00135]
[1722457896050,0.37850562,64845.0,64844.0,0.00135]
[1722457896254,0.38762768,64845.0,64844.0,0.00135]
[1722457896735,0.71614068,64845.0,64844.0,0.00235]
[1722457896937,0.54192768,64845.0,64844.0,0.00235]
[1722457897140,0.5177379,64845.0,64844.0,0.00235]
[1722457897335,0.5517379,64845.0,64844.0,0.00235]
[1722457898024,0.5517379,64845.0,64835.0,0.0037]
[1722457898240,0.07476412,64836.0,64835.0,0.0037]
[1722457898442,0.10988618,64845.0,64835.0,0.0037]
[1722457898658,0.07476412,64838.0,64835.0,0.0037]
[1722457898867,0.00213159,64837.0,64835.0,0.0037]
[1722457899073,0.01213159,64837.0,64835.0,0.0037]
[1722457899482,0.01,64836.0,64835.0,0.0037]
[1722457899898,0.01,64836.0,64835.0,0.0047]
[1722457900110,0.00213159,64837.0,64835.0,0.0047]
[1722457900366,0.00213159,64837.0,64835.0,0.0037]
[1722457900583,0.02419223,64836.0,64835.0,0.0047]
[1722457901007,0.02419223,64836.0,64835.0,0.0037]
[1722457901219,0.03119223,64836.0,64835.0,0.0047]
[1722457901875,0.03332382,64836.0,64835.0,0.0047]
[1722457902286,0.04732382,64836.0,64835.0,0.0047]
[1722457902493,0.02313159,64836.0,64835.0,0.0047]
[1722457905383,0.04732376,64836.0,64835.0,0.0047]
[1722457906021,0.35629062,64836.0,64835.0,0.0047]
[1722457906227,0.35629062,64836.0,64824.0,0.023274]
[1722457906228,0.1923,64825.0,64824.0,0.023274]
[1722457906442,0.71934162,64825.0,64824.0,0.023274]
[1722457906649,0.43282818,64825.0,64824.0,0.023274]
[1722457907064,0.43282818,64825.0,64824.0,0.007274]
[1722457907467,0.44282818,64825.0,64824.0,0.007274]
[1722457907881,0.44382818,64825.0,64824.0,0.008274]
[1722457908059,0.44382818,64825.0,64824.0,0.007274]
[1722457908267,0.30132818,64825.0,64824.0,0.007274]
[1722457908473,0.31532818,64825.0,64824.0,0.007274]
[1722457908679,0.025,64825.0,64824.0,0.007274]
[1722457908894,0.06642819,64825.0,64824.0,0.007274]
[1722457909097,0.011,64825.0,64824.0,0.007274]
[1722457909301,0.039,64825.0,64824.0,0.008274]
[1722457909752,0.04919375,64825.0,64824.0,0.008274]
[1722457909964,0.03519375,64825.0,64824.0,0.007274]
[1722457910169,0.18337414,64825.0,64824.0,0.007274]
[1722457910378,0.31648869,64825.0,64824.0,0.007274]
[1722457910580,0.30648869,64825.0,64824.0,0.007274]
[1722457910804,0.31048869,64825.0,64824.0,0.007274]
[1722457911007,0.31048869,64825.0,64810.0,0.052574]
[1722457911206,0.07476412,64818.0,64810.0,0.052574]
[1722457911440,0.00213159,64817.0,64810.0,0.052574]
[1722457912386,0.014,64818.0,64811.0,0.0015542]
[1722457912589,0.07476412,64816.0,64811.0,0.0015542]
[1722457912856,0.014,64818.0,64812.0,0.14955172]
[1722457913058,0.014,64825.0,64812.0,0.14955172]
[1722457913059,0.00213159,64824.0,64812.0,0.14955172]
[1722457913262,0.015,64817.0,64813.0,0.0015542]
[1722457913587,0.07689571,64816.0,64813.0,0.0015542]
[1722457913991,0.07689571,64816.0,64810.0,0.052574]
[1722457913992,0.21581015,64815.0,64811.0,0.001]
[1722457914119,0.21581015,64815.0,64807.0,0.0768]
[1722457914120,0.21794174,64814.0,64807.0,0.0768]
[1722457914323,0.21794174,64814.0,64805.0,0.0659]
[1722457914324,0.07476412,64809.0,64805.0,0.0659]
[1722457914530,0.16239437,64808.0,64805.0,0.0659]
[1722457914736,0.07476412,64816.0,64805.0,0.0659]
[1722457914737,0.16239437,64807.0,64805.0,0.0659]
[1722457914941,0.05768621,64807.0,64805.0,0.0659]
[1722457915139,0.05555462,64806.0,64805.0,0.0659]
[1722457915326,0.05555462,64814.0,64805.0,0.0659]
[1722457915561,0.21796035,64813.0,64805.0,0.0659]
[1722457915803,0.07476412,64809.0,64805.0,0.0659]
[1722457916005,0.07476412,64809.0,64803.0,0.0001]
[1722457916006,0.05768621,64808.0,64803.0,0.0001]
[1722457916242,0.06055462,64807.0,64803.0,0.0001]
[1722457916396,0.05768621,64806.0,64803.0,0.0001]
[1722457916600,0.00213159,64806.0,64803.0,0.0001]
[1722457917968,0.02633119,64806.0,64803.0,0.0001]
[1722457918402,0.02633119,64806.0,64803.0,0.0021]
[1722457918605,0.03333119,64806.0,64803.0,0.0021]
[1722457919334,0.00913159,64806.0,64803.0,0.0021]
[1722457919558,0.00913159,64806.0,64803.0,0.0001]
[1722457920126,0.00913159,64806.0,64804.0,0.14955172]
[1722457920127,0.007,64806.0,64804.0,0.14955172]
[1722457920332,0.007,64806.0,64805.0,0.154309]
[1722457920449,0.007,64806.0,64805.0,0.14955172]
[1722457921281,0.00920781,64817.0,64805.0,0.14955172]
[1722457921486,0.45858472,64826.0,64805.0,0.14955172]
[1722457921487,0.29255831,64816.0,64806.0,0.14955172]
[1722457921687,0.2156626,64815.0,64806.0,0.14955172]
[1722457921894,0.05753755,64814.0,64807.0,0.0632]
[1722457922064,0.07476412,64824.0,64808.0,0.14955172]
[1722457922065,0.00213159,64823.0,64808.0,0.14955172]
[1722457922270,0.21562005,64822.0,64808.0,0.14955172]
[1722457922472,0.02419729,64813.0,64808.0,0.14955172]
[1722457922714,0.00213159,64821.0,64808.0,0.14955172]
[1722457922918,0.00213159,64821.0,64816.0,0.0655]
[1722457922919,0.05535117,64821.0,64816.0,0.0655]
[1722457923160,0.05535117,64821.0,64818.0,0.0764]
[1722457923393,0.05535117,64821.0,64819.0,0.14955172]
[1722457923604,0.008,64822.0,64820.0,0.0015542]
[1722457923804,0.008,64822.0,64821.0,0.14955172]
[1722457924012,0.008,64822.0,64819.0,0.0015542]
[1722457924210,0.008,64822.0,64820.0,0.14955172]
[1722457924408,0.08411327,64838.0,64821.0,0.3100952]
[1722457924609,0.21562341,64837.0,64823.0,0.3100852]
[1722457924818,0.08411327,64838.0,64823.0,0.3100852]
[1722457924819,0.21562341,64836.0,64824.0,0.14955172]
[1722457925026,0.08411327,64838.0,64824.0,0.14955172]
[1722457925027,0.07476412,64831.0,64824.0,0.14955172]
[1722457925232,0.07476412,64831.0,64823.0,0.0015542]
[1722457925233,0.05754827,64830.0,64823.0,0.0015542]
[1722457925435,0.05754827,64830.0,64825.0,0.0015542]
[1722457925648,0.05754827,64830.0,64818.0,0.0764]
[1722457925649,0.05541668,64829.0,64819.0,0.0015542]
[1722457925852,0.07476412,64824.0,64820.0,0.14955172]
[1722457926048,0.05541668,64829.0,64820.0,0.14955172]
[1722457926049,0.00213159,64823.0,64820.0,0.14955172]
[1722457926257,0.00213159,64826.0,64820.0,0.14955172]
[1722457926460,0.02419213,64827.0,64820.0,0.14955172]
[1722457926461,0.02632372,64827.0,64823.0,0.004]
[1722457926656,0.02419213,64827.0,64824.0,0.14955172]
[1722457926860,0.02419213,64827.0,64825.0,0.0647542]
[1722457927065,0.02419213,64827.0,64826.0,0.14955172]
[1722457927274,0.008,64830.0,64826.0,0.14955172]
[1722457927520,0.008,64830.0,64827.0,0.0015542]
[1722457927720,0.00934915,64838.0,64825.0,0.0632]
[1722457927721,0.00934915,64838.0,64829.0,0.0015542]
[1722457927896,0.15696412,64845.0,64830.0,0.14955172]
[1722457927897,0.21559326,64837.0,64830.0,0.14955172]
[1722457928091,0.15696412,64845.0,64831.0,0.0015542]
[1722457928092,0.21559326,64836.0,64831.0,0.0015542]
[1722457928292,0.21559326,64835.0,64833.0,0.0015542]
[1722457928495,0.05538919,64835.0,64833.0,0.0015542]
[1722457928697,0.05538966,64834.0,64833.0,0.0015542]
[1722457929163,0.05538966,64834.0,64826.0,0.0085542]
[1722457929164,0.001,64827.0,64826.0,0.0085542]
[1722457929376,0.07576412,64827.0,64826.0,0.007]
[1722457929505,0.07576412,64827.0,64825.0,0.0632]
[1722457929506,0.07476412,64827.0,64825.0,0.0632]
[1722457929720,0.00213159,64833.0,64825.0,0.21275172]
[1722457929925,0.07476412,64831.0,64825.0,0.21275172]
[1722457930124,0.05753802,64830.0,64825.0,0.07847491]
[1722457930297,0.001,64827.0,64826.0,0.007]
[1722457930505,0.05640643,64827.0,64826.0,0.007]
[1722457930730,0.05540643,64827.0,64826.0,0.0015542]
[1722457930934,0.05540643,64827.0,64825.0,0.07847491]
[1722457931136,0.05540643,64827.0,64826.0,0.14955172]
[1722457931333,0.011,64834.0,64826.0,0.14955172]
[1722457931334,0.05540643,64833.0,64826.0,0.14955172]
[1722457931536,0.07689571,64832.0,64826.0,0.14955172]
[1722457931818,0.07689571,64832.0,64825.0,0.07847491]
[1722457932022,0.004,64827.0,64825.0,0.07947491]
[1722457932474,0.00213159,64830.0,64825.0,0.07847491]
[1722457932645,0.006,64833.0,64826.0,0.001]
[1722457932846,0.05746785,64832.0,64825.0,0.22802663]
[1722457933151,0.05533626,64831.0,64825.0,0.23002663]
[1722457933326,0.05533626,64831.0,64826.0,0.14955172]
[1722457933552,0.05533626,64830.0,64826.0,0.14955172]
[1722457933691,0.002,64830.0,64827.0,0.234456]
[1722457933894,0.002,64830.0,64828.0,0.1526367]
[1722457934098,0.002,64830.0,64829.0,1.02163299]
[1722457934099,0.02619017,64830.0,64829.0,1.02163299]
[1722457934347,0.07476412,64867.0,64846.0,0.308419]
[1722457934499,0.044836,64859.0,64850.0,0.0617]
[1722457934703,0.44858472,64860.0,64850.0,0.68913263]
[1722457934904,0.44858472,64860.0,64850.0,0.38072863]
[1722457935105,0.04481709,64871.0,64850.0,0.78913263]
[1722457935315,0.00922367,64871.0,64850.0,1.09753663]
[1722457935521,0.00922367,64871.0,64851.0,0.0613]
[1722457935748,0.04481709,64876.0,64861.0,0.29295172]
[1722457935749,0.44858472,64876.0,64861.0,0.29295172]
[1722457936008,0.44858472,64876.0,64862.0,0.1245542]
[1722457936009,0.07689571,64875.0,64862.0,0.1245542]
[1722457936249,0.07689571,64875.0,64863.0,0.14955172]
[1722457936485,0.07689571,64875.0,64864.0,0.0015542]
[1722457936486,0.07476412,64875.0,64864.0,0.0015542]
[1722457936681,0.07476412,64875.0,64865.0,0.14955172]
[1722457936970,0.07476412,64875.0,64866.0,0.0015542]
[1722457937099,0.07476412,64875.0,64869.0,0.154155]
[1722457937306,0.07476412,64891.0,64872.0,0.1374]
[1722457937507,0.008,64876.0,64873.0,0.14955172]
[1722457938032,0.08876412,64875.0,64873.0,0.14955172]
[1722457938286,0.00213159,64874.0,64873.0,0.14955172]
[1722457939108,0.07476412,64875.0,64873.0,0.14955172]
[1722457939452,0.008,64876.0,64875.0,0.154142]
[1722457939682,0.008,64876.0,64875.0,0.4067762]
[1722457939903,0.009559,64900.0,64885.0,0.154117]
[1722457940124,0.009559,64900.0,64887.0,0.229513]
[1722457940352,0.009559,64900.0,64891.0,0.770522]
[1722457940353,0.00091301,64897.0,64891.0,0.770522]
[1722457940578,0.00091301,64897.0,64891.0,1.35128272]
[1722457940796,0.00091301,64897.0,64896.0,0.932462]
[1722457941002,0.009559,64900.0,64899.0,0.462256]
[1722457941203,0.009559,64900.0,64899.0,0.71180772]
[1722457941406,0.009559,64900.0,64899.0,0.14955172]
[1722457942008,0.01169059,64900.0,64897.0,0.0015542]
[1722457942212,0.07476412,64898.0,64897.0,0.0015542]
[1722457942650,0.07476412,64898.0,64897.0,0.14955172]
[1722457943277,0.07476412,64898.0,64897.0,0.15855172]
[1722457943689,0.07476412,64898.0,64897.0,0.14955172]
[1722457943888,0.07476412,64898.0,64896.0,0.01527491]
[1722457944087,0.07476412,64898.0,64897.0,0.011]
[1722457944088,0.07576412,64898.0,64897.0,0.011]
[1722457944287,0.07576412,64898.0,64896.0,0.01527491]
[1722457944486,0.07576412,64898.0,64897.0,0.0125542]
[1722457944741,0.07676412,64898.0,64897.0,0.0125542]
[1722457945144,0.10092983,64898.0,64897.0,0.011]
[1722457945279,0.10184284,64898.0,64897.0,0.011]
[1722457945481,0.16194284,64898.0,64897.0,0.011]
[1722457945951,0.16194284,64898.0,64896.0,0.01527491]
[1722457945952,0.15994284,64898.0,64896.0,0.01527491]
[1722457946176,0.09984284,64898.0,64896.0,0.01527491]
[1722457946437,0.07667713,64898.0,64896.0,0.02627491]
[1722457946608,0.00191301,64898.0,64897.0,0.21115172]
[1722457946957,0.01291301,64898.0,64897.0,0.98568344]
[1722457947165,0.01491301,64898.0,64897.0,1.10460172]
[1722457947375,0.01491301,64898.0,64897.0,1.11460172]
[1722457947575,0.00591301,64898.0,64897.0,1.19090172]
[1722457947774,0.00591301,64898.0,64897.0,1.49908172]
[1722457947974,0.00691301,64898.0,64897.0,1.19090172]
[1722457948177,0.00691301,64898.0,64897.0,0.54154172]
[1722457948525,0.00591301,64898.0,64897.0,1.47608172]
[1722457948773,0.00591301,64898.0,64897.0,1.49908172]
[1722457948984,0.00591301,64898.0,64897.0,1.80726172]
[1722457949188,0.009559,64902.0,64901.0,0.01]
[1722457949392,0.01,64938.0,64915.0,0.1616]
[1722457949599,0.44858472,64933.0,64915.0,0.78856863]
[1722457949821,0.00924786,64929.0,64915.0,0.48047363]
[1722457950055,0.00924786,64929.0,64915.0,0.34942663]
[1722457950256,0.00924786,64929.0,64915.0,1.19656363]
[1722457950584,0.01054801,64916.0,64915.0,0.42832663]
[1722457950990,0.01154801,64916.0,64915.0,0.44232663]
[1722457951423,0.01054801,64916.0,64915.0,0.26682663]
[1722457951758,0.01154801,64916.0,64915.0,1.31576363]
[1722457951916,0.01154801,64916.0,64915.0,1.62385863]
[1722457952117,0.01154801,64916.0,64915.0,1.63385863]
[1722457952538,0.01154801,64916.0,64915.0,1.32576363]
[1722457952746,0.00954801,64916.0,64915.0,1.30874574]
[1722457952927,0.00954801,64916.0,64915.0,1.00065074]
[1722457953103,0.0357016,64916.0,64915.0,1.01665074]
[1722457953308,0.0357016,64916.0,64915.0,2.50265074]
[1722457953507,0.0347016,64916.0,64915.0,2.50065074]
[1722457953745,0.0347016,64916.0,64915.0,2.82274574]
[1722457953961,0.0347016,64916.0,64915.0,0.50852663]
[1722457954197,0.01054801,64916.0,64915.0,0.97066863]
[1722457954431,0.00954801,64916.0,64915.0,1.59885863]
[1722457954660,0.00954801,64916.0,64915.0,1.56958372]
[1722457954940,0.00954801,64916.0,64915.0,1.26148872]
[1722457955197,0.00954801,64916.0,64915.0,0.95339372]
[1722457955439,0.00954801,64916.0,64915.0,0.24955172]
[1722457955893,0.00954801,64916.0,64915.0,0.26355172]
[1722457956122,0.01054801,64916.0,64915.0,0.27155172]
[1722457956360,0.01054801,64916.0,64915.0,0.25755172]
[1722457956589,0.01054801,64916.0,64915.0,0.73677441]
[1722457956830,0.00954801,64916.0,64915.0,1.12286941]
[1722457957073,0.00954801,64916.0,64915.0,1.45796441]
[1722457957533,0.03370226,64916.0,64915.0,1.45396441]
[1722457957736,0.03370226,64916.0,64915.0,1.15986941]
[1722457957930,0.03470226,64916.0,64915.0,1.16786941]
[1722457958143,0.03470226,64916.0,64915.0,0.37155172]
[1722457958401,0.03470226,64916.0,64915.0,0.67964672]
[1722457958602,0.03470226,64916.0,64915.0,0.83369372]
[1722457958824,0.01054801,64916.0,64915.0,0.83369372]
[1722457959161,0.00954801,64916.0,64915.0,1.46488372]
[1722457959369,0.00954801,64916.0,64915.0,1.61678372]
[1722457959572,0.00954801,64916.0,64915.0,1.60278372]
[1722457959996,0.01054801,64916.0,64915.0,1.62278372]
[1722457960458,0.01054801,64916.0,64915.0,1.60878372]
[1722457960659,0.00954801,64916.0,64915.0,1.61678372]
[1722457960786,0.00954801,64916.0,64915.0,1.29468872]
[1722457961000,0.00954801,64916.0,64915.0,1.30399518]
[1722457961219,0.01054801,64916.0,64915.0,1.30999518]
[1722457961847,0.01054801,64916.0,64915.0,1.61809018]
[1722457962153,0.03470105,64916.0,64915.0,1.63209018]
[1722457962303,0.03370105,64916.0,64915.0,1.30799518]
[1722457962528,0.03370105,64916.0,64915.0,1.29999518]
[1722457962529,0.03470105,64916.0,64915.0,1.29999518]
[1722457962737,0.03470105,64916.0,64915.0,1.31399518]
[1722457962933,0.03470105,64916.0,64915.0,1.29999518]
[1722457963167,0.00954801,64916.0,64915.0,1.60209018]
[1722457963364,0.00954801,64916.0,64915.0,1.90579018]
[1722457963607,0.01054801,64916.0,64915.0,1.90579018]
[1722457963812,0.01054801,64916.0,64915.0,1.89179018]
[1722457963946,0.01054801,64916.0,64915.0,1.88579018]
[1722457963947,0.00954801,64916.0,64915.0,1.88579018]
[1722457964156,0.00954801,64916.0,64915.0,1.89979018]
[1722457964351,0.01054801,64916.0,64915.0,1.31399518]
[1722457965351,0.01054801,64916.0,64915.0,1.29999518]
[1722457965557,0.00954801,64916.0,64915.0,1.29399518]
[1722457965763,0.01054801,64916.0,64915.0,1.31399518]
[1722457965974,0.01054801,64916.0,64915.0,1.29999518]
[1722457966393,0.00954801,64916.0,64915.0,1.30799518]
[1722457966726,0.0337011,64916.0,64915.0,0.56889872]
[1722457966928,0.0337011,64916.0,64915.0,1.19908872]
[1722457967300,0.0347011,64916.0,64915.0,1.25278772]
[1722457967538,0.01054801,64916.0,64915.0,0.63659772]
[1722457967756,0.01054801,64916.0,64915.0,0.41725072]
[1722457967962,0.01054801,64916.0,64915.0,0.15555172]
[1722457968174,0.07254801,64916.0,64915.0,0.15555172]
[1722457968598,0.07254801,64916.0,64915.0,0.16955172]
[1722457968800,0.07154801,64916.0,64915.0,0.14955172]
[1722457969173,0.07154801,64916.0,64915.0,0.16755172]
[1722457969382,0.07154801,64916.0,64915.0,0.15355172]
[1722457969586,0.07154801,64916.0,64915.0,0.15755172]
[1722457969921,0.07154801,64916.0,64915.0,0.14955172]
[1722457970054,0.07954801,64916.0,64915.0,0.15055172]
[1722457970468,0.07154801,64916.0,64915.0,0.15155172]
[1722457970741,0.0736796,64916.0,64915.0,0.002]
[1722457970957,0.09783809,64916.0,64915.0,0.002]
[1722457971158,0.38602172,64916.0,64915.0,0.002]
[1722457971372,0.36186323,64916.0,64915.0,0.002]
[1722457972199,0.36273164,64916.0,64894.0,0.00308174]
[1722457972405,0.36273164,64916.0,64895.0,0.14955172]
[1722457972406,0.07476412,64901.0,64895.0,0.14955172]
[1722457972611,0.07476412,64901.0,64896.0,0.1]
[1722457972818,0.07476412,64901.0,64897.0,0.14955172]
[1722457973256,0.00213159,64900.0,64894.0,0.01527491]
[1722457973476,0.142,64899.0,64895.0,0.14955172]
[1722457973679,0.00213159,64898.0,64895.0,0.14955172]
[1722457973889,0.00213159,64898.0,64895.0,0.15755172]
[1722457974217,0.00213159,64898.0,64894.0,0.01527491]
[1722457974433,0.02629669,64898.0,64894.0,0.01527491]
[1722457975736,0.02629669,64898.0,64894.0,0.02527491]
[1722457975737,0.00213159,64898.0,64894.0,0.02527491]
[1722457975949,0.00213159,64898.0,64894.0,0.01527491]
[1722457976181,0.00213159,64898.0,64890.0,0.0704]
[1722457976182,0.154095,64895.0,64890.0,0.0704]
[1722457976404,0.46956131,64897.0,64890.0,0.0704]
[1722457976405,0.31826812,64891.0,64890.0,0.0704]
[1722457976618,0.31826812,64891.0,64874.0,0.01527491]
[1722457976619,0.01,64880.0,64874.0,0.01527491]
[1722457976823,0.0794,64881.0,64858.0,0.1]
[1722457976824,0.34846412,64878.0,64869.0,0.01527491]
[1722457977026,0.07476412,64870.0,64869.0,0.01527491]
[1722457979085,0.02417532,64870.0,64869.0,0.16482663]
[1722457979294,0.006,64870.0,64869.0,0.16482663]
[1722457979505,0.006,64870.0,64869.0,0.16782663]
[1722457979718,0.1408,64881.0,64869.0,0.16482663]
[1722457979934,0.07476412,64876.0,64869.0,0.01527491]
[1722457980179,0.011,64870.0,64869.0,0.01527491]
[1722457980598,0.00213159,64873.0,64869.0,0.02427491]
[1722457980802,0.1413,64871.0,64869.0,0.02427491]
[1722457980953,0.22678559,64870.0,64869.0,0.009]
[1722457981335,0.75540948,64870.0,64869.0,0.009]
[1722457981560,0.75540948,64870.0,64853.0,0.01527491]
[1722457981561,0.1482,64859.0,64853.0,0.01527491]
[1722457981790,0.07476412,64855.0,64853.0,0.01527491]
[1722457982012,0.00213159,64854.0,64853.0,0.01527491]
[1722457982956,0.1482,64859.0,64853.0,0.01627491]
[1722457982957,0.00213159,64858.0,64853.0,0.01627491]
[1722457983165,0.00213159,64858.0,64853.0,0.01527491]
[1722457983371,0.57545612,64854.0,64853.0,0.01527491]
[1722457983601,1.05339184,64854.0,64853.0,0.01527491]
[1722457983804,0.74500784,64854.0,64853.0,0.01527491]
[1722457984016,0.41126412,64854.0,64853.0,0.01527491]
[1722457984423,0.0628,64854.0,64853.0,0.01527491]
[1722457984633,0.06493159,64854.0,64853.0,0.01527491]
[1722457984847,0.0628,64854.0,64853.0,0.01527491]
[1722457985268,0.06493159,64854.0,64853.0,0.01527491]
[1722457985472,0.0628,64854.0,64853.0,0.01527491]
[1722457985669,0.0708,64854.0,64853.0,0.01627491]
[1722457985890,0.0768,64854.0,64853.0,0.01527491]
[1722457986091,0.10098416,64854.0,64853.0,0.01527491]
[1722457986292,0.09298416,64854.0,64853.0,0.01627491]
[1722457986546,0.03018416,64854.0,64853.0,0.01527491]
[1722457986751,0.04418416,64854.0,64853.0,0.01527491]
[1722457986936,0.05118416,64854.0,64853.0,0.01627491]
[1722457987139,0.021,64854.0,64853.0,0.01527491]
[1722457987455,0.02313159,64854.0,64853.0,0.01527491]
[1722457987701,0.021,64854.0,64853.0,0.01527491]
[1722457987873,0.02313159,64854.0,64853.0,0.01527491]
[1722457988100,0.00913159,64854.0,64853.0,0.01527491]
[1722457988414,0.02313159,64854.0,64853.0,0.01527491]
[1722457988664,0.02313159,64854.0,64837.0,0.14758]
[1722457988838,0.07476412,64847.0,64838.0,0.14955172]
[1722457989052,0.00913159,64854.0,64839.0,0.00308444]
[1722457989053,0.007,64854.0,64839.0,0.00308444]
[1722457989256,0.026,64854.0,64840.0,0.30377672]
[1722457989468,0.014,64854.0,64840.0,0.30377672]
[1722457989658,0.00918161,64859.0,64840.0,0.30377672]
[1722457989861,0.006,64854.0,64842.0,0.1]
[1722457990122,0.006,64854.0,64846.0,0.154211]
[1722457990123,0.007,64847.0,64846.0,0.154211]
[1722457990331,0.007,64847.0,64846.0,1.33435491]
[1722457990541,0.007,64847.0,64846.0,2.52593191]
[1722457990739,0.007,64847.0,64846.0,1.90908591]
[1722457991188,0.007,64847.0,64846.0,1.33435491]
[1722457991399,0.004,64854.0,64853.0,0.946572]
[1722457991611,0.004,64854.0,64853.0,1.61548763]
[1722457991824,0.004,64854.0,64853.0,1.61640426]
[1722457992253,0.004,64854.0,64853.0,1.63840306]
[1722457992529,0.004,64854.0,64853.0,1.61548763]
[1722457992806,0.004,64854.0,64853.0,1.63548763]
[1722457993020,0.00213159,64881.0,64869.0,0.300356]
[1722457993228,0.00213159,64881.0,64870.0,0.15110592]
[1722457993653,0.07476412,64876.0,64870.0,0.0015542]
[1722457993854,0.00213159,64875.0,64870.0,0.0015542]
[1722457995084,0.001,64881.0,64871.0,0.14955172]
[1722457995304,0.001,64881.0,64872.0,0.0015542]
[1722457995522,0.001,64881.0,64873.0,0.14955172]
[1722457995726,0.006,64875.0,64874.0,0.0015542]
[1722457995928,0.006,64875.0,64874.0,0.15110592]
[1722457996136,0.0617,64885.0,64876.0,0.1]
[1722457996339,0.008,64881.0,64877.0,0.23350592]
[1722457996962,0.008,64881.0,64880.0,0.462391]
[1722457997171,0.008,64881.0,64880.0,0.14955172]
[1722457997375,0.008,64881.0,64880.0,0.30368172]
[1722457997547,0.02416897,64881.0,64880.0,0.30368172]
[1722457997750,0.1402,64897.0,64883.0,0.1]
[1722457997957,0.07476412,64894.0,64887.0,0.154113]
[1722457998131,0.07476412,64894.0,64884.0,0.21438799]
[1722457998132,0.07476412,64894.0,64888.0,0.14955172]
[1722457998334,0.00213159,64893.0,64889.0,0.0015542]
[1722457998531,0.08383485,64901.0,64890.0,0.14955172]
[1722457998772,0.00907073,64901.0,64895.0,0.1]
[1722457998919,0.00213159,64907.0,64896.0,0.15418743]
[1722457999138,0.00213159,64907.0,64896.0,0.15110592]
[1722457999353,0.00954801,64916.0,64899.0,0.308166]
[1722457999563,0.00954801,64916.0,64900.0,0.15110592]
[1722458000140,0.07476412,64901.0,64900.0,0.15110592]
[1722458000279,0.07476412,64901.0,64900.0,0.14955172]